Cogmind - Beta 13 @@@ ROGUE MODE // 2024.04.07 @ 14:41:45 Player: Copyrite Result: Destroyed self with Micro Nuclear Core chain reaction Performance ------------- Evolutions (2) 1000 Regions Visited (5) 1000 Robots Destroyed (49) 245 Value Destroyed (1552) 1552 Prototype IDs (1) 20 Alien Tech Used (0) 0 Bonus (200) 200 TOTAL SCORE: 4017 Bonus ------- Entered Garrisons 200 Cogmind --------- Core Integrity 0/550 Matter 290/300 Energy 156/180 System Corruption 9% Temperature Cool (0) Movement Hovering (120) Ox1 Location -8/Garrison Parts ------- > --- POWER (1) -------- Meta Core > --- PROPULSION (4) --- Gravmag System > --- UTILITY (4+1) ---- Small Storage Unit (+) Signal Interpreter Hacking Suite > --- WEAPON (2) ------- Shock Rifle > --- INVENTORY (8) ---- Ion Engine Advanced Visual Processing Unit Targeting Computer Peak State ------------ > --- POWER ------------ Meta Core > --- PROPULSION ------- Makeshift Leg Myomer Leg Myomer Leg > --- UTILITY ---------- Small Storage Unit Sensor Array Signal Interpreter Hacking Suite Hacking Suite > --- WEAPON ----------- Subdweller Shrapnel Launcher Improved Datajack Makeshift Sword > --- INVENTORY -------- Ion Engine Visual Processing Unit Targeting Computer Beam Rifle [Rating: 49] Favorites ----------- Power Ion Engine Engine Ion Engine Power Core Meta Core Propulsion Myomer Leg Treads Light Treads Leg Myomer Leg Hover Unit Gravmag System Flight Unit Flight Unit Utility Small Storage Unit Device Heat Sink Storage Small Storage Unit Processor Signal Interpreter Hackware Hacking Suite Protection Light Armor Plating Weapon Beam Cannon Energy Gun Beamcaster Energy Cannon Beam Cannon Ballistic Gun Assault Rifle Launcher Subdweller Shrapnel Launcher Slashing Weapon Makeshift Sword Special Melee Weapon Improved Datajack Build | -11 -10 -10 -10 -8 -8 ------- Run | Yrd Mat Min Sub Mat Gar Slots Evolved 4 | . . . . 4 . Power . | . . . . . . Propulsion 2 | . . . . 2 . Utility 2 | . . . . 2 . Weapon . | . . . . . . Parts Attached 47 | 6 7 3 18 7 6 Power 6 | 1 . 1 4 . . Engine 4 | 1 . 1 2 . . Core 2 | . . . 2 . . Reactor . | . . . . . . Propulsion 13 | 2 2 2 3 1 3 Treads 4 | 2 2 . . . . Leg 5 | . . . 3 1 1 Wheel . | . . . . . . Hover 2 | . . . . . 2 Flight 2 | . . 2 . . . Utility 10 | 1 2 . 3 3 1 Device 4 | . 1 . 2 1 . Storage 2 | 1 . . 1 . . Processor 1 | . 1 . . . . Hackware 2 | . . . . 2 . Protection 1 | . . . . . 1 Artifact . | . . . . . . Weapon 18 | 2 3 . 8 3 2 Energy Gun 8 | . . . 5 1 2 Energy Cannon 3 | . 3 . . . . Ballistic Gun 4 | 2 . . 1 1 . Ballistic Cannon . | . . . . . . Launcher 1 | . . . 1 . . Special Weapon . | . . . . . . Impact Weapon . | . . . . . . Slashing Weapon 1 | . . . 1 . . Piercing Weapon . | . . . . . . Special Melee Weapon 1 | . . . . 1 . Unidentified Prototypes 1 | . . . 1 . . Parts Lost 17 | . . . 2 4 11 Power 1 | . . . 1 . . Propulsion 6 | . . . . 2 4 Utility 4 | . . . . 1 3 Weapon 6 | . . . 1 1 4 Highest Loss Streak 7 | . . . 1 2 7 To Critical Strikes . | . . . . . . Average Slot Usage (%) 89 | . 97 71 96 76 68 Engine 10 | . 14 14 11 . . Core 2 | . . . 2 7 7 Treads 8 | . 28 1 . . . Leg 12 | . . . 26 14 10 Flight 4 | . . 26 2 . . Device 4 | . 11 . 2 3 3 Storage 11 | . 14 14 12 7 7 Processor 8 | . . 14 13 7 7 Hackware 2 | . . . . 14 8 Energy Gun 6 | . . . 15 2 . Energy Cannon 7 | . 26 . . . . Ballistic Gun 1 | . 1 . 1 . 5 Launcher 1 | . . . . 7 3 Slashing Weapon 4 | . . . 7 7 7 Naked Turns . | . . . . . . Heaviest Build 29 | 13 17 16 25 29 29 Greatest Support 70 | 40 40 40 70 70 30 Greatest Overweight (x) 5 | . . 2 . 1 5 Average Overweight (x) . | . . . . . . Largest Inventory Capacity 8 | 8 8 8 8 8 8 Average Capacity 7 | 7 8 8 7 8 8 Most Carried 8 | 4 8 8 8 5 4 Average Carried 6 | 2 7 7 5 3 3 Final Capacity 8 | 8 8 8 8 8 8 Final Carried 8 | 4 8 8 4 4 3 Class Distribution -------------------- 49% | Scavenger-Mutant 46% | Mutant 4% | Hacker-Mutant Dominant Class ---------------- Mutant | -10/Materials Mutant | -10/Mines Scavenger-Mutant | -10/Subcaves Scavenger-Mutant | -8/Materials Scavenger-Mutant | -8/Garrison Resources | -11 -10 -10 -10 -8 -8 ----------- Run | Yrd Mat Min Sub Mat Gar Matter Collected 672 | 195 76 80 184 75 62 Remotely . | . . . . . . Salvage Created 1677 | . 416 53 440 467 301 Parts 121 | . 29 5 35 32 20 Haulers Intercepted . | . . . . . . Recyclers Shooed . | . . . . . . Parts Field Recycled . | . . . . . . Retrieved Matter . | . . . . . . Parts Self-Destructed 6 | . . . 6 . . Prevented . | . . . . . . Kills | -11 -10 -10 -10 -8 -8 ------- Run | Yrd Mat Min Sub Mat Gar Combat Hostiles Destroyed 42 | . 11 3 11 11 6 Melee 25 | . . . 9 11 5 Guns 3 | . . . 2 . 1 Cannons 13 | . 10 3 . . . Classes Destroyed 9 | . 6 . 2 . 1 Worker 1 | . 1 . . . . Recycler 3 | . 1 . . 2 . Operator 2 | . 1 . . 1 . Watcher 1 | . 1 . . . . Swarmer 16 | . 6 3 . 7 . Grunt 10 | . 5 . 1 2 2 Sentry 4 | . . . 1 2 1 Programmer 3 | . . . . . 3 Subdweller 9 | . . . 9 . . Best Kill Streak 5 | . 5 3 3 4 3 Combat Bots Only 4 | . 4 3 3 3 3 Max Kills in Single Turn 2 | . 2 2 1 1 1 Gunslinging . | . . . . . . Exploded . | . . . . . . Melee 1 | . . . 1 1 1 Uniques/NPCs Destroyed . | . . . . . . Combat | -11 -10 -10 -10 -8 -8 -------- Run | Yrd Mat Min Sub Mat Gar Hostile Shots Fired 258 | . 49 13 46 37 113 Missed 67 | . 14 4 13 10 26 Damage Taken 2554 | . 319 85 655 246 1249 Core 743 | . 59 30 83 46 525 Absorbed by Shields 88 | . . . . . 88 Core Remaining (%) 65 | 100 . . 31 . . Volleys Fired 81 | . 34 3 34 1 9 Largest 2 | . 2 2 2 1 1 Hottest 150 | . 120 120 150 40 56 Shots Fired 133 | . 68 6 48 1 10 Gun 58 | . . . 48 . 10 Cannon 74 | . 68 6 . . . Launcher 1 | . . . . 1 . Special . | . . . . . . Kinetic 12 | . . . 6 1 5 Thermal 119 | . 68 6 42 . 3 Explosive . | . . . . . . Electromagnetic 2 | . . . . . 2 Robot Hit Streak 6 | . 4 1 6 5 4 Robot Miss Streak 5 | . 5 3 1 . 2 Penetration Max . | . . . . . . Secondary Targets . | . . . . . . Shots Hit Robots 122 | . 33 2 47 22 18 Core Hits 55 | . 15 3 15 14 8 Critical Kills 1 | . 1 . . . . Critical Parts Destroyed . | . . . . . . Critical Strikes 6 | . 1 . 4 . 1 Burn 4 | . . . 4 . . Meltdown 1 | . 1 . . . . Sever 1 | . . . . . 1 Melee Attacks 113 | . . . 63 31 19 Impact . | . . . . . . Slashing 110 | . . . 63 28 19 Piercing . | . . . . . . Sneak Attacks 5 | . . . . 5 . Combat Hostiles . | . . . . . . Follow-up Attacks . | . . . . . . Damage Inflicted 3416 | . 698 51 1312 762 593 Guns 482 | . . . 392 . 90 Cannons 740 | . 689 51 . . . Explosions 134 | . . . . 64 70 Melee 2051 | . . . 920 698 433 Ramming 9 | . 9 . . . . Kinetic 174 | . . . 59 64 51 Thermal 1179 | . 689 51 333 . 106 Explosive . | . . . . . . Electromagnetic 3 | . . . . . 3 Impact . | . . . . . . Slashing 2051 | . . . 920 698 433 Piercing . | . . . . . . Highest Corruption 9 | . . . . . 9 Average Corruption 5 | . . . . . 5 Corruption Purged . | . . . . . . Corruption Blocked . | . . . . . . Effects 2 | . . . . . 2 Matter Fused 1 | . . . . . 1 Misfires 1 | . . . . . 1 Overload Shots . | . . . . . . Overflow Damage 110 | . 14 . 12 58 26 Projectiles 14 | . 14 . . . . Explosions 31 | . . . . 6 25 Melee 65 | . . . 12 52 1 Knockbacks . | . . . . . . Impact . | . . . . . . Kinetic . | . . . . . . Secondary . | . . . . . . Self-Inflicted Damage 68 | . . . . 21 47 Shots 2 | . . . . 1 1 Rammed 1 | . 1 . . . . Targets Rammed 1 | . 1 . . . . Kicked . | . . . . . . Crushed . | . . . . . . Highest Temperature 198 | . 198 180 108 . 16 Average Temperature 51 | . 54 92 33 . 8 Received Heat Transfer 354 | . 45 9 99 27 174 Siege Activations . | . . . . . . Robots Corrupted . | . . . . . . Combat Hostiles . | . . . . . . Parts Fried . | . . . . . . Impact Corruptions . | . . . . . . Robots Melted 1 | . 1 . . . . Combat Hostiles 1 | . 1 . . . . Parts Melted 5 | . 4 . 1 . . Heat Transferred 2566 | . 1443 111 888 . 124 Parts Sabotaged . | . . . . . . Parts Stolen . | . . . . . . Parts Stripped . | . . . . . . Power Chain Reactions 1 | . . . . . 1 Alert | -11 -10 -10 -10 -8 -8 ------- Run | Yrd Mat Min Sub Mat Gar Peak Influence 396 | . 248 95 . 396 212 Initial 127 | . . 10 . 15 127 Average 126 | . 126 84 . 181 151 Maximum Alert Level 1 | . 1 . . 1 1 Low Security (%) 80 | 100 80 100 . 57 86 Level 1 19 | . 19 . . 42 13 Level 2 . | . . . . . . Level 3 . | . . . . . . Level 4 . | . . . . . . Level 5 . | . . . . . . High Security . | . . . . . . Max Security . | . . . . . . Squads Dispatched 3 | . 3 . . . . Investigation . | . . . . . . Extermination . | . . . . . . Reinforcement 3 | . 3 . . . . Assault . | . . . . . . Garrison . | . . . . . . Intercept . | . . . . . . Searches Triggered . | . . . . . . Construction Impeded . | . . . . . . Haulers Reinforced . | . . . . . . Active Scanning Responses . | . . . . . . Cargo Convoy Interrupts . | . . . . . . Stealth | -11 -10 -10 -10 -8 -8 --------- Run | Yrd Mat Min Sub Mat Gar Distress Signals 1 | . 1 . . . . Communications Jammed . | . . . . . . Distress Signals . | . . . . . . Times Spotted 78 | . 25 5 21 19 8 Peak Tracking Total 5 | . 5 2 3 5 4 Tactical Retreats 7 | . 2 . 1 3 1 Traps | -11 -10 -10 -10 -8 -8 ------- Run | Yrd Mat Min Sub Mat Gar Traps Triggered 1 | . . . . . 1 Indirectly . | . . . . . . Trap Hack Attempts . | . . . . . . Triggered . | . . . . . . Disarmed . | . . . . . . Reprogrammed . | . . . . . . Reused . | . . . . . . Traps Extracted . | . . . . . . Installed . | . . . . . . Triggered . | . . . . . . Machines | -11 -10 -10 -10 -8 -8 ---------- Run | Yrd Mat Min Sub Mat Gar Machines Disabled 2 | . 1 . . . 1 Max in Single Turn 1 | . 1 . . . 1 Garrison Relay 2 | . . . . . 2 Machines Repaired . | . . . . . . Machines Dismantled . | . . . . . . Machines Sabotaged . | . . . . . . Overloaded Fab Kills . | . . . . . . Hacking | -11 -10 -10 -10 -8 -8 --------- Run | Yrd Mat Min Sub Mat Gar Machines Accessed 6 | . 4 . . 2 . Terminals 5 | . 4 . . 1 . Fabricators . | . . . . . . Repair Stations . | . . . . . . Recycling Units . | . . . . . . Scanalyzers . | . . . . . . Garrison Access 1 | . . . . 1 . Total Hacks 10 | . 7 . . 3 . Successful 5 | . 3 . . 2 . Failed 5 | . 4 . . 1 . Catastrophic 1 | . 1 . . . . Database Lockouts . | . . . . . . Manual 6 | . 4 . . 2 . Terminals 9 | . 7 . . 2 . Fabricators . | . . . . . . Repair Stations . | . . . . . . Recycling Units . | . . . . . . Scanalyzers . | . . . . . . Garrison Access 1 | . . . . 1 . Terminal Hacks 1 | . 1 . . . . Alert Level 1 | . 1 . . . . Fabricator Hacks . | . . . . . . Repair Station Hacks . | . . . . . . Recycling Unit Hacks . | . . . . . . Scanalyzer . | . . . . . . Garrison Access Hacks 1 | . . . . 1 . Unlock Access 1 | . . . . 1 . Unauthorized Hacks 3 | . 2 . . 1 . Terminals 3 | . 2 . . 1 . Botnet 3 | . 2 . . 1 . Fabricators . | . . . . . . Repair Stations . | . . . . . . Recycling Units . | . . . . . . Scanalyzers . | . . . . . . Garrison Access . | . . . . . . Data Cores Recovered 1 | . . . . 1 . Used 1 | . . . . 1 . Hacking Detections 5 | . 4 . . 1 . Full Trace Events . | . . . . . . Feedback Events . | . . . . . . Feedback Blocked . | . . . . . . Robot Schematics Acquired . | . . . . . . Robots Built . | . . . . . . Authchips . | . . . . . . Time . | . . . . . . Total Robot Build Rating . | . . . . . . Part Schematics Acquired . | . . . . . . Parts Built . | . . . . . . Authchips . | . . . . . . Time . | . . . . . . Total Part Build Rating . | . . . . . . Parts Repaired . | . . . . . . Time . | . . . . . . Parts Recycled . | . . . . . . Recycled Matter . | . . . . . . Retrieved Matter . | . . . . . . Retrieved Components . | . . . . . . Parts Scanalyzed . | . . . . . . Part Schematics Acquired . | . . . . . . Parts Damaged . | . . . . . . Bothacking | -11 -10 -10 -10 -8 -8 ------------ Run | Yrd Mat Min Sub Mat Gar Used RIF Installer . | . . . . . . Robots Hacked 1 | . . . . 1 . Non-combat 1 | . . . . 1 . Combat . | . . . . . . Robot Hacks Applied 2 | . . . . 2 . no_distress 1 | . . . . 1 . find_recycling 1 | . . . . 1 . Relay Couplers Released 10 | . . . . . 10 Machine Destruction 10 | . . . . . 10 Fabnet Peak Effective % . | . . . . . . Robots Rewired . | . . . . . . Allies Hacked . | . . . . . . Hacks Repelled . | . . . . . . Allies | -11 -10 -10 -10 -8 -8 -------- Run | Yrd Mat Min Sub Mat Gar Total Allies . | . . . . . . Largest Group . | . . . . . . Highest-Rated Group . | . . . . . . Highest-Rated Ally . | . . . . . . Total Orders . | . . . . . . Ally Attacks . | . . . . . . Total Damage . | . . . . . . Kills . | . . . . . . Allies Corrupted . | . . . . . . Allies Melted . | . . . . . . Intel | -11 -10 -10 -10 -8 -8 ------- Run | Yrd Mat Min Sub Mat Gar Robot Analysis Total . | . . . . . . Derelict Logs Recovered 2 | . . 1 1 . . Drone Launches . | . . . . . . Drone Recoveries . | . . . . . . Exploration | -11 -10 -10 -10 -8 -8 ------------- Run | Yrd Mat Min Sub Mat Gar Turns Passed 2970 | 82 810 368 1126 417 167 Spaces Moved 1988 | 47 413 405 844 210 69 Core 7 | 5 . . . . 2 Treads 460 | 42 413 5 . . . Legs 927 | . . . 657 210 60 Wheels . | . . . . . . Hover 7 | . . . . . 7 Flight 587 | . . 400 187 . . Fastest Speed 37 | 50 160 37 37 126 56 Average Speed 108 | 148 160 40 102 142 149 Slowest Speed 300 | 160 160 200 126 210 300 Overloaded Moves . | . . . . . . Propulsion Burnouts . | . . . . . . Robots Hopped 1 | . . 1 . . . Cave-ins Triggered . | . . . . . . Exploration Rate (%) 39 | 5 63 75 62 17 13 Regions Visited 5 Branch Regions 2 Pre-discovered Areas . | . . . . . . Known Exits Taken 4 | . 1 1 1 1 . Unknown Exits Taken 1 | 1 . . . . . Scrap Searched 4 | . . 1 3 . . Spaces Dug . | . . . . . . Terrain Destroyed 21 | . . . . 21 . Melee . | . . . . . . Projectile . | . . . . . . AOE 21 | . . . . 21 . Terrain Rammed . | . . . . . . Walls Destroyed . | . . . . . . Machines Disabled . | . . . . . . Actions | -11 -10 -10 -10 -8 -8 --------- Run | Yrd Mat Min Sub Mat Gar Total 2550 | 56 495 602 995 298 104 Wait 279 | . 28 187 19 45 . Move 1981 | 46 412 402 843 209 69 Hop 1 | . . 1 . . . Pick Up 23 | 4 7 1 7 3 1 Fast Attach 21 | 6 1 2 5 3 4 Attach 11 | . . . 6 3 2 Detach 1 | . . . . 1 . Swap 15 | . 6 1 7 1 . Drop 23 | . 6 5 11 1 . Fire 81 | . 34 3 34 1 9 Melee 113 | . . . 63 31 19 Ram . | . . . . . . Kick . | . . . . . . Crush 1 | . 1 . . . . Escape Stasis . | . . . . . . Rewire . | . . . . . . Trap . | . . . . . . Miscellaneous . | . . . . . . Route ------- -11/Scrapyard -10/Materials (discovered 4 exits: [*Mat x2] / *Min x2) -10/Mines -10/Subcaves -8/Materials -8/Garrison History --------- Turn | Location | Event 26 | -11/Scrapyard | Discovered new exit (range 16) 83 | -11/Scrapyard | Entered Materials 270 | -10/Materials | Discovered new exit (range 12) 335 | -10/Materials | Build established: Mutant 495 | -10/Materials | Discovered new exit (range 6) 795 | -10/Materials | Discovered new exit (range 4) 820 | -10/Materials | Discovered new exit (range 16) 890 | -10/Materials | Identified exit to Mines 893 | -10/Materials | Entered Mines 962 | -10/Mines | Met a Derelict bent on vengeance 1261 | -10/Mines | Discovered new exit (range 3) 1261 | -10/Mines | Identified exit to Subcaves 1261 | -10/Mines | Entered Subcaves 1262 | -10/Subcaves | Identified exit to Materials 1305 | -10/Subcaves | Ambushed by swarm of Subdwellers 1478 | -10/Subcaves | A swath of the cavern ceiling suddenly collapsed 1611 | -10/Subcaves | A swath of the cavern ceiling suddenly collapsed 1612 | -10/Subcaves | Build established: Scavenger-Mutant 1708 | -10/Subcaves | Disturbed a concealed Subdweller 1788 | -10/Subcaves | Shifting Twisted Machinery released Spk. Treads 1830 | -10/Subcaves | Shifting Twisted Machinery released Sub. Beam Cannon 1986 | -10/Subcaves | Ambushed by Subdwellers from Twisted Machinery 2170 | -10/Subcaves | A Subdweller sparked back to life 2170 | -10/Subcaves | A Subdweller sparked back to life 2170 | -10/Subcaves | A Subdweller sparked back to life 2208 | -10/Subcaves | Core integrity fell below 50% 2216 | -10/Subcaves | Found Prototype Power Core 2217 | -10/Subcaves | Identified Meta Core 2218 | -10/Subcaves | Attached Meta Core, gained temporary slots: Propulsion, Utility, Weapon 2387 | -10/Subcaves | Entered Materials 2387 | -8/Materials | Evolved 4 slots: Propulsion x2, Utility x2 2803 | -8/Materials | Identified exit to Garrison 2804 | -8/Materials | Entered Garrison 2818 | -8/Garrison | Triggered checkpoint 2931 | -8/Garrison | Garrison Relay disabled 2938 | -8/Garrison | Core integrity fell below 50% 2940 | -8/Garrison | Garrison Relay disabled 2956 | -8/Garrison | Core integrity fell below 20% 2971 | -8/Garrison | Destroyed self with Micro Nuclear Core chain reaction Last Messages --------------- Relay Coupler [Sentry] tumbles out of relay unit. Relay Coupler [NC] tumbles out of relay unit. Aluminum Leg destroyed. P-60 Hacker resets P-60 Hacker, system corruption cleaned. Destroyed Imp. Heat Sink. P-60 Hacker destroyed. Beam Rifle destroyed. Acquired Gravmag System. Acquired 20 matter. System corrupted: Matter fused (-6). Acquired 6 matter. Gravmag System destroyed. P-60 Hacker destroyed. Mak. Sword destroyed. Acquired Shock Rifle. Machine disabled. Chain reaction triggered in Mic. Nuclear Core. Destroyed Gravmag System. Map ----- +----------------------------------------------------+ | ???????????????????????????????????????? | | ?????????????????????????????????###???? | | ????????????????????????????????? ???? | | ????????????????????????????????? ???? | | ????????????????????????????????? #???? | | ????????????????????????????????? #???? | | ????????????????????????????????? #???? | | ????????????????????????????????? #???? | | ???????????????????????########## #???? | | ???????????????????????# #???? | | ???????????????????????# #???? | | ???????????????????????# ##### ###???? | | ???????????????????????# #???# #?????? | | ???????????????????????#####???# #?????? | | ???????????????????????????????#%#?????? | | ???????????????????????????????#*#?????? | | ???????????????????????????????#%#?????? | | ???????????????????????????????+*###???? | | ???????????????????????????????+ ! #???? | | ????????????????#######??????? +%[=+ ? | | ????????????#####"""""#??????? + ! ## ## | | ????????????? "#??????"#+ ###??#? | | ??????????###+#" ! ???????### #?????? | | ??????????#"" " "#+####?????# #?????? | | ??????????#"" p! ! !%! ####### ###"""# | | ??????????#"" @|! *[ [ | | ??????????#"" ! !!!!% ############### | | ??????????#" "% "#+####?????????????? | | ??????????###+#"!! ?????????????????? | | ????????????? "#????????????????? | | ????????????#####"""""#????????????????? | | ????????????????#######????????????????? | | ???????????????????????????????????????? | | ???????????????????????????????????????? | | ???????????????????????????????????????? | | ???????????????????????????????????????? | | ???????????????????????????????????????? | | ???????????????????????????????????????? | | ???????????????????????????????????????? | | ???????????????????????????????????????? | | ???????????????????????????????????????? | | ???????????????????????????????????????? | | ???????????????????????????????????????? | | ???????????????????????????????????????? | | ???????????????????????????????????????? | | ???????????????????????????????????????? | | ???????????????????????????????????????? | | ???????????????????????????????????????? | | | | | +----------------------------------------------------+ Best States ------------- Heat Dissipation 35 Energy Generation 18 Energy Capacity 250 Matter Stores 300 Matter Capacity 300 Sight Range 16 Robot Scan Range 14 Terrain Scan Density 10 Armor Coverage 150 Evasion (%) 62 Recoil Reduction 2 Offensive Hacking 20 Item Schematics ----------------- None Robot Schematics ------------------ None Fabricated ------------ Nothing Alien Tech Used ----------------- None Achievements -------------- None Challenges ------------ None Game ------ Seed ColdSystemBooster Manual? 0 Play Time 00:35:25 Cumulative 12.3 hours Start 2024.04.07 @ 14:08:18 End 2024.04.07 @ 14:41:45 Sessions 1 Manual Loads 0 Difficulty Rogue Special Mode None Game No. 21 Rogue 21 Adventurer 0 Explorer 0 Win Type - Total 0 Types 0/0/0/0/0/0/0/0/0 Lore% 9 Gallery% 18 Achievement% 19 Wizard Run 0 Options --------- Layout 1 ASCII 0 Keyboard 0 Movement Numpad Keybinds 0 Fullscreen 1 Font 32/SmallcapsGlow Map View 50x35 Zoom Use 0% Tactical HUD 0 Map Filters NONE Filters NONE Steam 1 RUN: 15cb6fe0-6f29-484d-bddc-f06dc93d24f9